[Event "Titled Tuesday Blitz July 11 Early 2023"]
[White "Adla, Diego"]
[Black "Kopacz, Grzegorz"]
[WhiteFideId "100072"]
[BlackFideId "1109880"]
[WhiteElo "2474"]
[BlackElo "2211"]
[Result "1/2-1/2"]
[Round "9"]
[TimeControl "180+2"]
[Date "2023.07.11"]
[WhiteClock "0:00:53"]
[BlackClock "0:01:39"]
[Board "157"]

1. e4 {[%clk 0:03:00]}  c5 {[%clk 0:02:59]} 2. Nf3 {[%clk 0:02:59]}  Nc6 {[%clk 0:02:58]} 3. d4 {[%clk 0:02:58]}  cxd4 {[%clk 0:02:58]} 4. Nxd4 {[%clk 0:02:57]}  g6 {[%clk 0:02:58]} 5. c4 {[%clk 0:02:54]}  Nf6 {[%clk 0:02:55]} 6. Nc3 {[%clk 0:02:52]}  d6 {[%clk 0:02:55]} 7. Be3 {[%clk 0:02:51]}  Ng4 {[%clk 0:02:53]} 8. Qd2 {[%clk 0:02:46]}  Nxe3 {[%clk 0:02:52]} 9. Qxe3 {[%clk 0:02:46]}  Bg7 {[%clk 0:02:51]} 10. Nf3 {[%clk 0:02:39]}  O-O {[%clk 0:02:51]} 11. Be2 {[%clk 0:02:35]}  Ne5 {[%clk 0:02:45]} 12. O-O {[%clk 0:02:30]}  Nxf3+ {[%clk 0:02:44]} 13. Bxf3 {[%clk 0:02:29]}  Be6 {[%clk 0:02:44]} 14. Be2 {[%clk 0:02:27]}  Qa5 {[%clk 0:02:40]} 15. Rfd1 {[%clk 0:02:03]}  Rfc8 {[%clk 0:02:36]} 16. Nd5 {[%clk 0:01:35]}  Bxd5 {[%clk 0:02:30]} 17. exd5 {[%clk 0:01:26]}  Rc7 {[%clk 0:02:30]} 18. Qd2 {[%clk 0:01:20]}  Qb6 {[%clk 0:02:03]} 19. Rab1 {[%clk 0:01:18]}  a5 {[%clk 0:02:00]} 20. a4 {[%clk 0:01:14]}  Qc5 {[%clk 0:01:50]} 21. b3 {[%clk 0:01:13]}  b6 {[%clk 0:01:39]} 22. Bf3 {[%clk 0:00:53]} 1/2-1/2


[Site "https://www.chess.com"]

[Event "Titled Tuesday Blitz July 11 Early 2023"]
[White "Liu, Casper"]
[Black "Tarnowska, Aleksandra"]
[WhiteFideId "1454153"]
[BlackFideId "1180967"]
[WhiteElo "2487"]
[BlackElo "2106"]
[Result "1-0"]
[Round "9"]
[TimeControl "180+2"]
[Date "2023.07.11"]
[WhiteClock "0:00:55"]
[BlackClock "0:00:15"]
[Board "158"]

1. c3 {[%clk 0:02:56]}  e5 {[%clk 0:02:59]} 2. d4 {[%clk 0:02:55]}  Nc6 {[%clk 0:02:57]} 3. dxe5 {[%clk 0:02:55]}  Nxe5 {[%clk 0:02:57]} 4. Nf3 {[%clk 0:02:55]}  Ng6 {[%clk 0:02:57]} 5. h4 {[%clk 0:02:51]}  h5 {[%clk 0:02:52]} 6. Bg5 {[%clk 0:02:50]}  Be7 {[%clk 0:02:51]} 7. e3 {[%clk 0:02:48]}  Nf6 {[%clk 0:02:48]} 8. Bd3 {[%clk 0:02:46]}  d5 {[%clk 0:02:44]} 9. Qc2 {[%clk 0:02:37]}  Nf8 {[%clk 0:02:35]} 10. Nbd2 {[%clk 0:02:37]}  Bg4 {[%clk 0:02:32]} 11. O-O-O {[%clk 0:02:38]}  Ne6 {[%clk 0:02:21]} 12. e4 {[%clk 0:02:38]}  d4 {[%clk 0:02:10]} 13. Nb3 {[%clk 0:02:30]}  c5 {[%clk 0:01:51]} 14. Bb5+ {[%clk 0:02:21]}  Nd7 {[%clk 0:01:49]} 15. Bxe7 {[%clk 0:02:20]}  Qxe7 {[%clk 0:01:46]} 16. cxd4 {[%clk 0:02:21]}  cxd4 {[%clk 0:01:39]} 17. Ne5 {[%clk 0:02:03]}  Nf8 {[%clk 0:01:17]} 18. Nxg4 {[%clk 0:01:46]}  a6 {[%clk 0:01:03]} 19. Bxd7+ {[%clk 0:01:39]}  Nxd7 {[%clk 0:01:03]} 20. Nh2 {[%clk 0:01:33]}  O-O {[%clk 0:01:02]} 21. Kb1 {[%clk 0:01:33]}  Rac8 {[%clk 0:00:59]} 22. Qd3 {[%clk 0:01:31]}  Ne5 {[%clk 0:00:57]} 23. Qxd4 {[%clk 0:01:31]}  Rfd8 {[%clk 0:00:54]} 24. Qe3 {[%clk 0:01:31]}  Nc4 {[%clk 0:00:50]} 25. Qe2 {[%clk 0:01:28]}  Nd6 {[%clk 0:00:43]} 26. e5 {[%clk 0:01:20]}  Nb5 {[%clk 0:00:28]} 27. Rxd8+ {[%clk 0:01:17]}  Rxd8 {[%clk 0:00:27]} 28. Rd1 {[%clk 0:01:17]}  Re8 {[%clk 0:00:27]} 29. Qxh5 {[%clk 0:01:14]}  Qc5 {[%clk 0:00:24]} 30. Nf3 {[%clk 0:01:11]}  Qxf2 {[%clk 0:00:21]} 31. e6 {[%clk 0:01:00]}  g6 {[%clk 0:00:20]} 32. exf7+ {[%clk 0:00:58]}  Kxf7 {[%clk 0:00:20]} 33. Rd7+ {[%clk 0:00:55]}  Ke6 {[%clk 0:00:15]} 34. Qd5+ {[%clk 0:00:54]}  Kf6 {[%clk 0:00:15]} 35. Rf7# {[%clk 0:00:55]} 1-0


[Site "https://www.chess.com"]

[Event "Titled Tuesday Blitz July 11 Early 2023"]
[White "Goughfather"]
[Black "Hartikainen, Jarmo"]
[BlackFideId "503134"]
[WhiteElo "2027"]
[BlackElo "2128"]
[Result "0-1"]
[Round "9"]
[TimeControl "180+2"]
[Date "2023.07.11"]
[WhiteClock "0:00:03"]
[BlackClock "0:00:03"]
[Board "161"]

1. d4 {[%clk 0:02:31]}  Nf6 {[%clk 0:02:57]} 2. Nc3 {[%clk 0:02:31]}  e6 {[%clk 0:02:54]} 3. e4 {[%clk 0:02:30]}  d5 {[%clk 0:02:55]} 4. exd5 {[%clk 0:02:29]}  exd5 {[%clk 0:02:54]} 5. Bd3 {[%clk 0:02:30]}  Be7 {[%clk 0:02:49]} 6. Bg5 {[%clk 0:02:26]}  O-O {[%clk 0:02:44]} 7. Nge2 {[%clk 0:02:26]}  Bg4 {[%clk 0:02:40]} 8. f3 {[%clk 0:02:25]}  Be6 {[%clk 0:02:36]} 9. Nf4 {[%clk 0:02:19]}  Qd7 {[%clk 0:02:24]} 10. Nxe6 {[%clk 0:02:12]}  Qxe6+ {[%clk 0:02:21]} 11. Qe2 {[%clk 0:02:12]}  Qxe2+ {[%clk 0:02:10]} 12. Kxe2 {[%clk 0:02:13]}  Nc6 {[%clk 0:02:05]} 13. Be3 {[%clk 0:02:09]}  Rfe8 {[%clk 0:01:56]} 14. Kf2 {[%clk 0:02:07]}  a6 {[%clk 0:01:49]} 15. Rad1 {[%clk 0:02:03]}  h6 {[%clk 0:01:33]} 16. Ne2 {[%clk 0:02:00]}  Nb4 {[%clk 0:01:28]} 17. a3 {[%clk 0:01:58]}  Nxd3+ {[%clk 0:01:27]} 18. Rxd3 {[%clk 0:01:59]}  Bd6 {[%clk 0:01:22]} 19. Ng3 {[%clk 0:01:56]}  Bxg3+ {[%clk 0:01:18]} 20. hxg3 {[%clk 0:01:50]}  Re7 {[%clk 0:01:17]} 21. g4 {[%clk 0:01:48]}  Rae8 {[%clk 0:01:12]} 22. Rc3 {[%clk 0:01:39]}  c6 {[%clk 0:01:12]} 23. g5 {[%clk 0:01:34]}  hxg5 {[%clk 0:01:11]} 24. Bxg5 {[%clk 0:01:34]}  Re2+ {[%clk 0:01:11]} 25. Kg3 {[%clk 0:01:34]}  Nd7 {[%clk 0:01:03]} 26. Rd1 {[%clk 0:01:18]}  Nf8 {[%clk 0:01:00]} 27. Bd2 {[%clk 0:01:02]}  Ne6 {[%clk 0:00:54]} 28. Rd3 {[%clk 0:01:02]}  g5 {[%clk 0:00:39]} 29. c3 {[%clk 0:00:33]}  f6 {[%clk 0:00:32]} 30. Re3 {[%clk 0:00:26]}  Rxe3 {[%clk 0:00:29]} 31. Bxe3 {[%clk 0:00:27]}  Kg7 {[%clk 0:00:27]} 32. f4 {[%clk 0:00:23]}  Kg6 {[%clk 0:00:22]} 33. fxg5 {[%clk 0:00:22]}  fxg5 {[%clk 0:00:20]} 34. Rf1 {[%clk 0:00:19]}  Rh8 {[%clk 0:00:18]} 35. Bd2 {[%clk 0:00:16]}  Rh4 {[%clk 0:00:16]} 36. Re1 {[%clk 0:00:15]}  Re4 {[%clk 0:00:15]} 37. Rxe4 {[%clk 0:00:15]}  dxe4 {[%clk 0:00:15]} 38. Kf2 {[%clk 0:00:15]}  Kf5 {[%clk 0:00:14]} 39. Ke3 {[%clk 0:00:15]}  b5 {[%clk 0:00:11]} 40. b3 {[%clk 0:00:15]}  Nc7 {[%clk 0:00:11]} 41. c4 {[%clk 0:00:15]}  g4 {[%clk 0:00:08]} 42. a4 {[%clk 0:00:12]}  bxa4 {[%clk 0:00:07]} 43. bxa4 {[%clk 0:00:13]}  Ne6 {[%clk 0:00:07]} 44. d5 {[%clk 0:00:12]}  cxd5 {[%clk 0:00:07]} 45. cxd5 {[%clk 0:00:13]}  Nc7 {[%clk 0:00:05]} 46. d6 {[%clk 0:00:13]}  Ne6 {[%clk 0:00:03]} 47. Ba5 {[%clk 0:00:12]}  Nc5 {[%clk 0:00:02]} 48. Kd4 {[%clk 0:00:10]}  Nb3+ {[%clk 0:00:02]} 49. Kd5 {[%clk 0:00:06]}  Nxa5 {[%clk 0:00:02]} 50. d7 {[%clk 0:00:07]}  Nb7 {[%clk 0:00:02]} 51. Kc6 {[%clk 0:00:07]}  Nd8+ {[%clk 0:00:02]} 52. Kc7 {[%clk 0:00:07]}  Ne6+ {[%clk 0:00:02]} 53. Kd6 {[%clk 0:00:03]}  e3 {[%clk 0:00:03]} 0-1


[Site "https://www.chess.com"]

[Event "Titled Tuesday Blitz July 11 Early 2023"]
[White "neri_gaite"]
[Black "Alimpic, Aleksa"]
[BlackFideId "974323"]
[WhiteElo "2118"]
[BlackElo "2301"]
[Result "0-1"]
[Round "9"]
[TimeControl "180+2"]
[Date "2023.07.11"]
[WhiteClock "0:00:07"]
[BlackClock "0:00:04"]
[Board "164"]

1. c4 {[%clk 0:03:00]}  g6 {[%clk 0:02:58]} 2. Nc3 {[%clk 0:03:00]}  Bg7 {[%clk 0:02:59]} 3. g3 {[%clk 0:03:00]}  d6 {[%clk 0:02:59]} 4. Bg2 {[%clk 0:03:01]}  e5 {[%clk 0:03:00]} 5. e3 {[%clk 0:03:01]}  f5 {[%clk 0:02:59]} 6. Nge2 {[%clk 0:03:01]}  Nf6 {[%clk 0:03:00]} 7. O-O {[%clk 0:03:02]}  O-O {[%clk 0:03:00]} 8. b3 {[%clk 0:03:02]}  c6 {[%clk 0:02:59]} 9. d4 {[%clk 0:02:59]}  e4 {[%clk 0:02:56]} 10. d5 {[%clk 0:02:53]}  c5 {[%clk 0:02:51]} 11. Bb2 {[%clk 0:02:53]}  Na6 {[%clk 0:02:51]} 12. a3 {[%clk 0:02:45]}  Nc7 {[%clk 0:02:51]} 13. Qd2 {[%clk 0:02:44]}  Bd7 {[%clk 0:02:44]} 14. Rae1 {[%clk 0:02:42]}  Ng4 {[%clk 0:02:40]} 15. f3 {[%clk 0:02:34]}  exf3 {[%clk 0:02:38]} 16. Bxf3 {[%clk 0:02:35]}  Qg5 {[%clk 0:02:31]} 17. Nf4 {[%clk 0:02:27]}  Rae8 {[%clk 0:02:24]} 18. e4 {[%clk 0:02:24]}  Bd4+ {[%clk 0:02:06]} 19. Kh1 {[%clk 0:02:15]}  Ne5 {[%clk 0:01:41]} 20. Bg2 {[%clk 0:02:02]}  Qh6 {[%clk 0:01:30]} 21. Nd1 {[%clk 0:01:31]}  Bxb2 {[%clk 0:00:58]} 22. Nxb2 {[%clk 0:01:22]}  g5 {[%clk 0:00:57]} 23. Nfd3 {[%clk 0:01:19]}  Nxd3 {[%clk 0:00:40]} 24. Nxd3 {[%clk 0:01:16]}  fxe4 {[%clk 0:00:40]} 25. Rxf8+ {[%clk 0:01:14]}  Rxf8 {[%clk 0:00:36]} 26. Bxe4 {[%clk 0:01:11]}  Qg7 {[%clk 0:00:19]} 27. Bg2 {[%clk 0:00:56]}  Re8 {[%clk 0:00:17]} 28. Rxe8+ {[%clk 0:00:50]}  Nxe8 {[%clk 0:00:18]} 29. h3 {[%clk 0:00:50]}  h6 {[%clk 0:00:15]} 30. Qe3 {[%clk 0:00:45]}  Nf6 {[%clk 0:00:11]} 31. b4 {[%clk 0:00:41]}  b6 {[%clk 0:00:10]} 32. bxc5 {[%clk 0:00:32]}  bxc5 {[%clk 0:00:11]} 33. Qc1 {[%clk 0:00:32]}  Nh5 {[%clk 0:00:08]} 34. Kh2 {[%clk 0:00:28]}  Qd4 {[%clk 0:00:08]} 35. Qb1 {[%clk 0:00:10]}  Qxc4 {[%clk 0:00:03]} 36. Ne1 {[%clk 0:00:09]}  Qd4 {[%clk 0:00:02]} 37. Nf3 {[%clk 0:00:09]}  Qf6 {[%clk 0:00:02]} 38. Qb8+ {[%clk 0:00:07]}  Kf7 {[%clk 0:00:02]} 39. Qxa7 {[%clk 0:00:08]}  Qe7 {[%clk 0:00:02]} 40. Qb6 {[%clk 0:00:09]}  Nf6 {[%clk 0:00:02]} 41. a4 {[%clk 0:00:09]}  Nxd5 {[%clk 0:00:02]} 42. Qb3 {[%clk 0:00:09]}  Be6 {[%clk 0:00:02]} 43. Qd3 {[%clk 0:00:10]}  Nb4 {[%clk 0:00:02]} 44. a5 {[%clk 0:00:11]}  Nxd3 {[%clk 0:00:01]} 45. Nxg5+ {[%clk 0:00:11]}  hxg5 {[%clk 0:00:01]} 46. h4 {[%clk 0:00:11]}  Qa7 {[%clk 0:00:02]} 47. hxg5 {[%clk 0:00:11]}  Ne5 {[%clk 0:00:02]} 48. Be4 {[%clk 0:00:11]}  Ng6 {[%clk 0:00:03]} 49. Kg2 {[%clk 0:00:12]}  d5 {[%clk 0:00:04]} 50. Kf2 {[%clk 0:00:13]}  dxe4 {[%clk 0:00:04]} 51. Ke3 {[%clk 0:00:07]}  c4+ {[%clk 0:00:04]} 0-1


[Site "https://www.chess.com"]

[Event "Titled Tuesday Blitz July 11 Early 2023"]
[White "Nakamura, Hikaru"]
[Black "Nihal Sarin"]
[WhiteFideId "2016192"]
[BlackFideId "25092340"]
[WhiteElo "3246"]
[BlackElo "3053"]
[Result "1-0"]
[Round "10"]
[TimeControl "180+2"]
[Date "2023.07.11"]
[WhiteClock "0:00:04"]
[BlackClock "0:00:01"]
[Board "1"]

1. a3 {[%clk 0:03:00]}  d5 {[%clk 0:02:57]} 2. d4 {[%clk 0:03:00]}  Nf6 {[%clk 0:02:58]} 3. Nf3 {[%clk 0:02:59]}  Bf5 {[%clk 0:02:58]} 4. c4 {[%clk 0:02:59]}  c6 {[%clk 0:02:58]} 5. e3 {[%clk 0:02:58]}  e6 {[%clk 0:02:58]} 6. Bd3 {[%clk 0:02:58]}  Bg6 {[%clk 0:02:57]} 7. Bxg6 {[%clk 0:02:58]}  hxg6 {[%clk 0:02:57]} 8. Nbd2 {[%clk 0:02:59]}  Nbd7 {[%clk 0:02:57]} 9. Qc2 {[%clk 0:02:57]}  Bd6 {[%clk 0:02:57]} 10. b3 {[%clk 0:02:57]}  Qe7 {[%clk 0:02:39]} 11. Bb2 {[%clk 0:02:57]}  O-O-O {[%clk 0:02:39]} 12. b4 {[%clk 0:02:38]}  Kb8 {[%clk 0:02:39]} 13. c5 {[%clk 0:02:21]}  Bc7 {[%clk 0:02:40]} 14. b5 {[%clk 0:02:22]}  cxb5 {[%clk 0:02:36]} 15. Qb3 {[%clk 0:02:22]}  Qe8 {[%clk 0:02:24]} 16. a4 {[%clk 0:02:11]}  b4 {[%clk 0:02:14]} 17. Qxb4 {[%clk 0:02:10]}  Ka8 {[%clk 0:02:14]} 18. Rb1 {[%clk 0:02:03]}  Nb8 {[%clk 0:02:09]} 19. Bc3 {[%clk 0:01:59]}  Qc6 {[%clk 0:02:09]} 20. Qb5 {[%clk 0:01:53]}  a6 {[%clk 0:02:08]} 21. Qb2 {[%clk 0:01:44]}  Nbd7 {[%clk 0:02:02]} 22. Nb3 {[%clk 0:01:39]}  Ne4 {[%clk 0:01:55]} 23. Ba5 {[%clk 0:01:22]}  Rb8 {[%clk 0:01:43]} 24. Bxc7 {[%clk 0:01:16]}  Qxc7 {[%clk 0:01:44]} 25. Nbd2 {[%clk 0:01:11]}  b6 {[%clk 0:01:30]} 26. cxb6 {[%clk 0:00:32]}  Rxb6 {[%clk 0:01:28]} 27. Rc1 {[%clk 0:00:30]}  Rxb2 {[%clk 0:01:06]} 28. Rxc7 {[%clk 0:00:29]}  Ndf6 {[%clk 0:01:07]} 29. Nxe4 {[%clk 0:00:22]}  dxe4 {[%clk 0:01:05]} 30. Nd2 {[%clk 0:00:22]}  Nd5 {[%clk 0:01:06]} 31. Rc1 {[%clk 0:00:22]}  Nb4 {[%clk 0:00:27]} 32. Ke2 {[%clk 0:00:21]}  Nd3 {[%clk 0:00:23]} 33. Rc7 {[%clk 0:00:19]}  f5 {[%clk 0:00:19]} 34. f3 {[%clk 0:00:20]}  Ra2 {[%clk 0:00:14]} 35. fxe4 {[%clk 0:00:17]}  fxe4 {[%clk 0:00:15]} 36. Rf1 {[%clk 0:00:18]}  Rb8 {[%clk 0:00:07]} 37. Rff7 {[%clk 0:00:15]}  Rbb2 {[%clk 0:00:06]} 38. Rc8+ {[%clk 0:00:15]}  Rb8 {[%clk 0:00:07]} 39. Rxb8+ {[%clk 0:00:16]}  Kxb8 {[%clk 0:00:08]} 40. Rxg7 {[%clk 0:00:16]}  Rxa4 {[%clk 0:00:04]} 41. Nxe4 {[%clk 0:00:16]}  Nb4 {[%clk 0:00:05]} 42. Rxg6 {[%clk 0:00:16]}  Ra2+ {[%clk 0:00:05]} 43. Kf3 {[%clk 0:00:16]}  a5 {[%clk 0:00:06]} 44. h4 {[%clk 0:00:16]}  a4 {[%clk 0:00:06]} 45. Rg5 {[%clk 0:00:16]}  Kc7 {[%clk 0:00:05]} 46. Rc5+ {[%clk 0:00:16]}  Kd8 {[%clk 0:00:04]} 47. Nc3 {[%clk 0:00:15]}  Ra1 {[%clk 0:00:03]} 48. Rc4 {[%clk 0:00:15]}  Nc2 {[%clk 0:00:01]} 49. Nxa4 {[%clk 0:00:13]}  Ne1+ {[%clk 0:00:01]} 50. Ke4 {[%clk 0:00:13]}  Nxg2 {[%clk 0:00:01]} 51. Nb6 {[%clk 0:00:13]}  Ra3 {[%clk 0:00:02]} 52. Rc8+ {[%clk 0:00:13]}  Ke7 {[%clk 0:00:02]} 53. Nc4 {[%clk 0:00:13]}  Rc3 {[%clk 0:00:03]} 54. Rc7+ {[%clk 0:00:13]}  Kd8 {[%clk 0:00:03]} 55. Rc5 {[%clk 0:00:14]}  Nxh4 {[%clk 0:00:03]} 56. Ne5 {[%clk 0:00:09]}  Ra3 {[%clk 0:00:02]} 57. Rc2 {[%clk 0:00:04]}  Nf5 {[%clk 0:00:02]} 58. Nc4 {[%clk 0:00:05]}  Rb3 {[%clk 0:00:02]} 59. Kf4 {[%clk 0:00:05]}  Ke7 {[%clk 0:00:02]} 60. Rc1 {[%clk 0:00:05]}  Rb4 {[%clk 0:00:03]} 61. Ne5 {[%clk 0:00:04]}  Rb3 {[%clk 0:00:03]} 62. Re1 {[%clk 0:00:04]}  Nd6 {[%clk 0:00:03]} 63. Rh1 {[%clk 0:00:04]}  Nf5 {[%clk 0:00:04]} 64. Rh7+ {[%clk 0:00:05]}  Ke8 {[%clk 0:00:04]} 65. Ng4 {[%clk 0:00:05]}  Rb4 {[%clk 0:00:03]} 66. Ke5 {[%clk 0:00:05]}  Rb3 {[%clk 0:00:02]} 67. Kxe6 {[%clk 0:00:04]}  Nxe3 {[%clk 0:00:01]} 68. Rh8# {[%clk 0:00:04]} 1-0


[Site "https://www.chess.com"]

[Event "Titled Tuesday Blitz July 11 Early 2023"]
[White "Bok, Benjamin"]
[Black "Narayanan.S.L"]
[WhiteFideId "1017063"]
[BlackFideId "5058422"]
[WhiteElo "2992"]
[BlackElo "3041"]
[Result "1/2-1/2"]
[Round "10"]
[TimeControl "180+2"]
[Date "2023.07.11"]
[WhiteClock "0:00:33"]
[BlackClock "0:02:27"]
[Board "2"]

1. d4 {[%clk 0:03:00]}  Nf6 {[%clk 0:02:46]} 2. c4 {[%clk 0:03:00]}  e6 {[%clk 0:02:46]} 3. Nc3 {[%clk 0:03:00]}  Bb4 {[%clk 0:02:46]} 4. Qc2 {[%clk 0:03:00]}  O-O {[%clk 0:02:44]} 5. a3 {[%clk 0:03:00]}  Bxc3+ {[%clk 0:02:43]} 6. Qxc3 {[%clk 0:03:01]}  d5 {[%clk 0:02:43]} 7. Bg5 {[%clk 0:03:01]}  h6 {[%clk 0:02:43]} 8. Bxf6 {[%clk 0:03:01]}  Qxf6 {[%clk 0:02:43]} 9. Nf3 {[%clk 0:03:02]}  c5 {[%clk 0:02:40]} 10. cxd5 {[%clk 0:03:00]}  cxd4 {[%clk 0:02:40]} 11. Qxd4 {[%clk 0:03:00]}  Qxd4 {[%clk 0:02:40]} 12. Nxd4 {[%clk 0:03:01]}  exd5 {[%clk 0:02:40]} 13. Rc1 {[%clk 0:02:58]}  Nc6 {[%clk 0:02:37]} 14. Nxc6 {[%clk 0:02:12]}  bxc6 {[%clk 0:02:37]} 15. Rxc6 {[%clk 0:02:04]}  Bf5 {[%clk 0:02:29]} 16. e3 {[%clk 0:00:33]}  Rfc8 {[%clk 0:02:27]} 1/2-1/2


[Site "https://www.chess.com"]

[Event "Titled Tuesday Blitz July 11 Early 2023"]
[White "Chigaev, Maksim"]
[Black "Oparin, Grigoriy"]
[WhiteFideId "4108116"]
[BlackFideId "24125890"]
[WhiteElo "2947"]
[BlackElo "2966"]
[Result "0-1"]
[Round "10"]
[TimeControl "180+2"]
[Date "2023.07.11"]
[WhiteClock "0:00:00"]
[BlackClock "0:00:12"]
[Board "3"]

1. e4 {[%clk 0:03:00]}  c5 {[%clk 0:03:00]} 2. b3 {[%clk 0:02:59]}  Nc6 {[%clk 0:02:58]} 3. Bb2 {[%clk 0:02:59]}  e5 {[%clk 0:02:58]} 4. Bc4 {[%clk 0:02:59]}  Nf6 {[%clk 0:02:52]} 5. d3 {[%clk 0:02:59]}  d6 {[%clk 0:02:40]} 6. Ne2 {[%clk 0:02:56]}  a6 {[%clk 0:02:35]} 7. a4 {[%clk 0:02:56]}  Be7 {[%clk 0:02:29]} 8. O-O {[%clk 0:02:56]}  O-O {[%clk 0:02:29]} 9. Nbc3 {[%clk 0:02:56]}  Be6 {[%clk 0:02:18]} 10. f4 {[%clk 0:02:51]}  Qd7 {[%clk 0:02:04]} 11. f5 {[%clk 0:02:30]}  Bxc4 {[%clk 0:02:04]} 12. bxc4 {[%clk 0:02:28]}  Nd4 {[%clk 0:02:03]} 13. a5 {[%clk 0:02:28]}  Rfb8 {[%clk 0:01:55]} 14. Bc1 {[%clk 0:02:19]}  h6 {[%clk 0:01:48]} 15. g4 {[%clk 0:02:07]}  Nxg4 {[%clk 0:01:04]} 16. Nxd4 {[%clk 0:02:02]}  exd4 {[%clk 0:01:05]} 17. Qxg4 {[%clk 0:02:00]}  dxc3 {[%clk 0:01:04]} 18. Bxh6 {[%clk 0:02:01]}  Bf6 {[%clk 0:01:05]} 19. Kh1 {[%clk 0:01:58]}  Kf8 {[%clk 0:01:04]} 20. Bg5 {[%clk 0:01:37]}  b5 {[%clk 0:00:59]} 21. axb6 {[%clk 0:01:25]}  Rxb6 {[%clk 0:01:00]} 22. Qh4 {[%clk 0:01:20]}  Ke7 {[%clk 0:00:56]} 23. Rae1 {[%clk 0:01:17]}  Qc7 {[%clk 0:00:47]} 24. Rg1 {[%clk 0:01:12]}  Rf8 {[%clk 0:00:39]} 25. Qh7 {[%clk 0:01:10]}  Ke8 {[%clk 0:00:32]} 26. Bxf6 {[%clk 0:00:49]}  gxf6 {[%clk 0:00:33]} 27. Qg7 {[%clk 0:00:47]}  Qe7 {[%clk 0:00:28]} 28. Rb1 {[%clk 0:00:47]}  Rb2 {[%clk 0:00:28]} 29. Rxb2 {[%clk 0:00:18]}  cxb2 {[%clk 0:00:29]} 30. Rb1 {[%clk 0:00:18]}  Qe5 {[%clk 0:00:29]} 31. Qg3 {[%clk 0:00:18]}  Qd4 {[%clk 0:00:23]} 32. Qe1 {[%clk 0:00:11]}  Kd7 {[%clk 0:00:23]} 33. Qa5 {[%clk 0:00:11]}  Rb8 {[%clk 0:00:16]} 34. Qa4+ {[%clk 0:00:09]}  Kc7 {[%clk 0:00:15]} 35. Qxa6 {[%clk 0:00:09]}  Qc3 {[%clk 0:00:14]} 36. Qa4 {[%clk 0:00:06]}  Rb7 {[%clk 0:00:12]} 37. Kg1 {[%clk 0:00:00]}  Qd2 {[%clk 0:00:12]} 0-1


[Site "https://www.chess.com"]

[Event "Titled Tuesday Blitz July 11 Early 2023"]
[White "Aravindh, Chithambaram VR."]
[Black "Makarian, Rudik"]
[WhiteFideId "5072786"]
[BlackFideId "44105681"]
[WhiteElo "2947"]
[BlackElo "2956"]
[Result "0-1"]
[Round "10"]
[TimeControl "180+2"]
[Date "2023.07.11"]
[WhiteClock "0:00:00"]
[BlackClock "0:00:13"]
[Board "4"]

1. b3 {[%clk 0:03:00]}  d5 {[%clk 0:02:59]} 2. Bb2 {[%clk 0:03:00]}  Bg4 {[%clk 0:03:00]} 3. Nf3 {[%clk 0:03:00]}  Bxf3 {[%clk 0:02:59]} 4. exf3 {[%clk 0:02:59]}  e6 {[%clk 0:02:58]} 5. f4 {[%clk 0:02:57]}  Nf6 {[%clk 0:02:58]} 6. g3 {[%clk 0:02:56]}  g6 {[%clk 0:02:59]} 7. Bg2 {[%clk 0:02:55]}  Bg7 {[%clk 0:02:59]} 8. O-O {[%clk 0:02:55]}  O-O {[%clk 0:03:00]} 9. d3 {[%clk 0:02:48]}  c5 {[%clk 0:02:59]} 10. Nd2 {[%clk 0:02:48]}  Nc6 {[%clk 0:03:00]} 11. c3 {[%clk 0:02:46]}  Qd6 {[%clk 0:02:54]} 12. Nf3 {[%clk 0:02:44]}  b5 {[%clk 0:02:47]} 13. Qe2 {[%clk 0:02:42]}  Nd7 {[%clk 0:02:47]} 14. d4 {[%clk 0:02:32]}  cxd4 {[%clk 0:02:30]} 15. cxd4 {[%clk 0:02:33]}  Rab8 {[%clk 0:02:26]} 16. Ne5 {[%clk 0:02:24]}  Rfc8 {[%clk 0:02:24]} 17. Rfc1 {[%clk 0:02:17]}  Ndxe5 {[%clk 0:02:15]} 18. fxe5 {[%clk 0:02:18]}  Qb4 {[%clk 0:02:16]} 19. Qd1 {[%clk 0:02:05]}  Bh6 {[%clk 0:02:10]} 20. Rc5 {[%clk 0:02:01]}  Bf8 {[%clk 0:02:04]} 21. Rc2 {[%clk 0:01:49]}  Ne7 {[%clk 0:01:55]} 22. Rac1 {[%clk 0:01:46]}  Rxc2 {[%clk 0:01:52]} 23. Rxc2 {[%clk 0:01:47]}  Rc8 {[%clk 0:01:48]} 24. Bf1 {[%clk 0:01:44]}  Rxc2 {[%clk 0:01:28]} 25. Qxc2 {[%clk 0:01:45]}  Nf5 {[%clk 0:01:29]} 26. a3 {[%clk 0:01:28]}  Qa5 {[%clk 0:01:24]} 27. b4 {[%clk 0:01:11]}  Qb6 {[%clk 0:01:24]} 28. Qc3 {[%clk 0:01:08]}  a6 {[%clk 0:01:16]} 29. Bd3 {[%clk 0:00:50]}  Ne7 {[%clk 0:01:16]} 30. Bc1 {[%clk 0:00:51]}  Qc6 {[%clk 0:01:14]} 31. Qb2 {[%clk 0:00:46]}  Nc8 {[%clk 0:01:11]} 32. Bg5 {[%clk 0:00:43]}  Nb6 {[%clk 0:01:02]} 33. h4 {[%clk 0:00:42]}  Na4 {[%clk 0:00:55]} 34. Qe2 {[%clk 0:00:38]}  Qc3 {[%clk 0:00:54]} 35. Qe3 {[%clk 0:00:19]}  Qxa3 {[%clk 0:00:49]} 36. h5 {[%clk 0:00:20]}  Nb2 {[%clk 0:00:48]} 37. hxg6 {[%clk 0:00:07]}  hxg6 {[%clk 0:00:41]} 38. Qc1 {[%clk 0:00:04]}  Qxb4 {[%clk 0:00:22]} 39. Bxg6 {[%clk 0:00:04]}  fxg6 {[%clk 0:00:18]} 40. Qc8 {[%clk 0:00:04]}  Kf7 {[%clk 0:00:17]} 41. Qd7+ {[%clk 0:00:02]}  Be7 {[%clk 0:00:18]} 42. Kg2 {[%clk 0:00:02]}  Nc4 {[%clk 0:00:14]} 43. Qc8 {[%clk 0:00:02]}  Bxg5 {[%clk 0:00:13]} 44. Qh8 {[%clk 0:00:02]}  Be7 {[%clk 0:00:13]} 45. Qh7+ {[%clk 0:00:02]}  Ke8 {[%clk 0:00:13]} 46. Qg8+ {[%clk 0:00:02]}  Kd7 {[%clk 0:00:13]} 47. Qa8 {[%clk 0:00:03]}  Qa5 {[%clk 0:00:13]} 48. Qb7+ {[%clk 0:00:03]}  Qc7 {[%clk 0:00:14]} 49. Qxa6 {[%clk 0:00:04]}  Qb6 {[%clk 0:00:14]} 50. Qa8 {[%clk 0:00:03]}  b4 {[%clk 0:00:14]} 51. Qa4+ {[%clk 0:00:03]}  Kc7 {[%clk 0:00:14]} 52. Qe8 {[%clk 0:00:03]}  Bd8 {[%clk 0:00:14]} 53. Qf7+ {[%clk 0:00:03]}  Kc8 {[%clk 0:00:14]} 54. Qxg6 {[%clk 0:00:03]}  b3 {[%clk 0:00:15]} 55. Qb1 {[%clk 0:00:03]}  b2 {[%clk 0:00:15]} 56. g4 {[%clk 0:00:02]}  Na3 {[%clk 0:00:15]} 57. Qa2 {[%clk 0:00:02]}  b1=Q {[%clk 0:00:14]} 58. Qxa3 {[%clk 0:00:02]}  Qe4+ {[%clk 0:00:14]} 59. f3 {[%clk 0:00:02]}  Qc2+ {[%clk 0:00:14]} 60. Kg3 {[%clk 0:00:03]}  Qc4 {[%clk 0:00:12]} 61. Qa8+ {[%clk 0:00:00]}  Kc7 {[%clk 0:00:13]} 0-1


[Site "https://www.chess.com"]